Cogmind - Beta 16 --- EXPLORER MODE // 2026.04.05 @ 20:11:16 Player: GermanMO Result: Destroyed by FA-DWQ(R) with Subdweller Laser Performance ------------- Evolutions (0) 0 Regions Visited (3) 600 Robots Destroyed (20) 100 Value Destroyed (344) 344 Prototype IDs (0) 0 Alien Tech Used (0) 0 Bonus (0) 0 TOTAL SCORE: 1044 Bonus ------- None Cogmind --------- Core Integrity 0/250 Matter 300/300 Energy 73/100 System Corruption 0% Temperature Cool (6) Movement Core (50) Location -10/Subcaves Parts ------- > --- POWER (1) -------- (None) > --- PROPULSION (2) --- (None) > --- UTILITY (3) ------ (None) > --- WEAPON (2) ------- (None) > --- INVENTORY (5) ---- Light Treads Light Treads Compact Wheel Improved Terrain Scanner Core Shielding Peak State ------------ > --- POWER ------------ Light Ion Engine > --- PROPULSION ------- Light Treads Light Treads > --- UTILITY ---------- Medium Storage Unit Seismic Detector Core Shielding > --- WEAPON ----------- Assault Rifle Assault Rifle > --- INVENTORY -------- Light Ion Engine Compact Wheel Compact Wheel High-capacity Matter Pod Improved Terrain Scanner ECM Suite EM Pulse Gun Mining Laser [Rating: 9] Favorites ----------- Power Light Ion Engine Engine Light Ion Engine Propulsion Light Treads Treads Light Treads Utility Core Shielding Device Seismic Detector Storage Medium Storage Unit Protection Core Shielding Weapon Assault Rifle Energy Gun EM Pulse Gun Ballistic Gun Assault Rifle Launcher Grenade Launcher Special Weapon Mining Laser Build | -11 -10 -10 -10 ------- Run | Yrd Mat Min Sub Slots Evolved 1 | . 1 . . Power . | . . . . Propulsion . | . . . . Utility 1 | . 1 . . Weapon . | . . . . Parts Attached 16 | 8 2 3 3 Power 2 | 1 . 1 . Engine 2 | 1 . 1 . Core . | . . . . Reactor . | . . . . Propulsion 5 | 2 . 1 2 Treads 5 | 2 . 1 2 Leg . | . . . . Wheel . | . . . . Hover . | . . . . Flight . | . . . . Utility 4 | 2 1 1 . Device 1 | 1 . . . Storage 1 | . 1 . . Processor . | . . . . Hackware . | . . . . Protection 2 | 1 . 1 . Artifact . | . . . . Weapon 5 | 3 1 . 1 Energy Gun 1 | 1 . . . Energy Cannon . | . . . . Ballistic Gun 2 | 2 . . . Ballistic Cannon . | . . . . Launcher 1 | . . . 1 Special Weapon 1 | . 1 . . Impact Weapon . | . . . . Slashing Weapon . | . . . . Piercing Weapon . | . . . . Special Melee Weapon . | . . . . Unidentified Prototypes . | . . . . Parts Lost 9 | . 1 . 8 Power 2 | . 1 . 1 Propulsion 1 | . . . 1 Utility 2 | . . . 2 Weapon 4 | . . . 4 Highest Loss Streak 6 | . 1 . 6 To Critical Strikes . | . . . . Average Backups 7 | 2 7 8 8 Power . | . 1 . . Propulsion 2 | . 1 2 3 Utility 2 | 1 2 3 3 Weapon 1 | 1 2 2 1 Tool/Special . | . . . . Unused Backups 6 | . 1 . 5 Power . | . . . . Propulsion 3 | . 1 . 2 Utility 3 | . . . 3 Weapon . | . . . . Tool/Special . | . . . . Average Slot Usage (%) 85 | . 98 89 59 Engine 7 | . 11 2 3 Treads 22 | . 25 25 17 Device 8 | . 11 10 1 Storage 11 | . 11 12 12 Protection 13 | . 12 14 15 Ballistic Gun 18 | . 23 25 6 Special Weapon 1 | . 1 . 1 Peak Build Rating 9 | 7 9 9 9 Average Rating 7 | 6 8 8 5 On Entrance 6 | . 7 8 9 Avg Prop Armor Cover (%) . | . . . . Naked Turns 1 | . . . 1 Heaviest Build 22 | 9 19 21 22 Greatest Support 40 | 40 40 40 40 Greatest Overweight (x) . | . . . . Average Overweight (x) . | . . . . Largest Inventory Capacity 10 | 5 10 10 10 Average Capacity 9 | 5 9 10 9 Most Carried 10 | 5 8 10 10 Average Carried 7 | 2 7 8 8 Final Capacity 10 | 5 10 10 5 Final Carried 10 | 5 8 10 5 Class Distribution -------------------- 100% | Hacker-Mutant Dominant Class ---------------- Hacker-Mutant | -10/Materials Hacker-Mutant | -10/Mines Hacker-Mutant | -10/Subcaves Resources | -11 -10 -10 -10 ----------- Run | Yrd Mat Min Sub Matter Collected 903 | 338 375 112 78 Remotely . | . . . . Salvage Created 541 | 105 260 145 31 Parts 55 | 11 25 15 4 Haulers Intercepted . | . . . . Recyclers Shooed 1 | 1 . . . Parts Field Recycled . | . . . . Retrieved Matter . | . . . . Parts Self-Destructed . | . . . . Prevented . | . . . . Parts Restored . | . . . . Kills | -11 -10 -10 -10 ------- Run | Yrd Mat Min Sub Combat Hostiles Destroyed 12 | . 9 2 1 Guns 12 | . 9 2 1 Classes Destroyed 8 | 2 4 1 1 Worker 2 | . 1 1 . Tunneler 4 | 3 . 1 . Recycler 1 | 1 . . . Watcher 1 | . 1 . . Swarmer 6 | . 6 . . Grunt 3 | . 3 . . Sentry 2 | . . 2 . Subdweller 1 | . . . 1 Best Kill Streak 3 | 3 3 3 1 Combat Bots Only 2 | . 2 2 1 Max Kills in Single Turn 1 | 1 1 1 1 Gunslinging . | . . . . Exploded . | . . . . Melee . | . . . . Uniques/NPCs Destroyed . | . . . . Combat | -11 -10 -10 -10 -------- Run | Yrd Mat Min Sub Hostile Shots Fired 158 | . 59 16 83 Missed 45 | . 15 3 27 Hits 113 | . 44 13 56 Projectile 113 | . 44 13 56 AOE 5 | . . . 5 Critical Strikes 3 | . 1 . 2 Damage Taken 1338 | . 283 122 933 Core 250 | . 34 16 200 Absorbed by Shields . | . . . . Redirected to Shielding 44 | . 5 2 37 Ignored by Resistances 810 | . 187 74 549 Core Remaining (%) 100 | 100 . . . Volleys Fired 51 | 10 23 8 10 Largest 2 | 2 2 2 2 Hottest 100 | 40 100 40 100 Shots Fired 99 | 20 45 16 18 Gun 96 | 20 44 16 16 Cannon . | . . . . Launcher 1 | . . . 1 Special 2 | . 1 . 1 Kinetic 96 | 20 44 16 16 Thermal 2 | . 1 . 1 Explosive 1 | . . . 1 Electromagnetic . | . . . . Robot Hit Streak 23 | 10 22 23 23 Robot Miss Streak 1 | 1 1 1 . Penetration Max . | . . . . Secondary Targets 1 | . 1 . . Max Gunslinging Chain 1 | . 1 . . Shots Hit Robots 81 | 16 37 13 15 Core Hits 27 | 5 14 6 2 Critical Kills . | . . . . Critical Parts Destroyed . | . . . . Critical Strikes . | . . . . Melee Attacks . | . . . . Impact . | . . . . Slashing . | . . . . Piercing . | . . . . Sneak Attacks . | . . . . Combat Hostiles . | . . . . Follow-up Attacks . | . . . . Damage Inflicted 1080 | 213 484 167 216 Guns 1044 | 213 484 167 180 Cannons . | . . . . Explosions 36 | . . . 36 Melee . | . . . . Ramming . | . . . . Kinetic 1044 | 213 484 167 180 Thermal . | . . . . Explosive 36 | . . . 36 Electromagnetic . | . . . . Impact . | . . . . Slashing . | . . . . Piercing . | . . . . Highest Corruption . | . . . . Average Corruption . | . . . . Corruption Purged . | . . . . Corruption Blocked . | . . . . Overload Shots . | . . . . Overflow Damage . | . . . . Projectiles . | . . . . Explosions . | . . . . Melee . | . . . . Knockbacks . | . . . . Impact . | . . . . Kinetic . | . . . . Secondary . | . . . . Self-Inflicted Damage 14 | . . . 14 Shots 1 | . . . 1 Rammed . | . . . . Targets Rammed . | . . . . Kicked . | . . . . Crushed . | . . . . Highest Temperature 175 | . 20 6 175 Average Temperature 53 | . 9 6 105 Received Heat Transfer 793 | . 210 54 529 Siege Activations . | . . . . Martial Activations . | . . . . Shielding Activations . | . . . . Robots Disrupted . | . . . . Combat Hostiles . | . . . . Robots Corrupted . | . . . . Combat Hostiles . | . . . . Parts Fried . | . . . . Impact Corruptions . | . . . . Robots Melted . | . . . . Combat Hostiles . | . . . . Parts Melted . | . . . . Heat Transferred . | . . . . Parts Sabotaged . | . . . . Parts Stolen . | . . . . Parts Stripped . | . . . . Power Chain Reactions . | . . . . Alert | -11 -10 -10 -10 ------- Run | Yrd Mat Min Sub Maximum Alert Level . | . . . . Low Security (%) 100 | 100 100 100 . Level 1 . | . . . . Level 2 . | . . . . Level 3 . | . . . . Level 4 . | . . . . Level 5 . | . . . . High Security . | . . . . Max Security . | . . . . Peak Influence 50 | 15 50 40 . Initial . | . . . . Average 3 | . 4 2 . Influence Increases 384 | 20 284 50 30 Destroy 0b10 Robot/C 220 | . 180 40 . Destroy 0b10 Robot/NC 40 | 20 10 10 . Destroy Leader 42 | . 42 . . Successful Hack 6 | . 6 . . Destroy Structure 1 | . 1 . . Lose Combat Pursuer 75 | . 45 . 30 Influence Decreases 384 | 20 284 50 30 Time Decay 374 | 20 274 50 30 Lost Part 10 | . 10 . . Squads Dispatched 1 | . 1 . . Investigation 1 | . 1 . . Extermination . | . . . . Reinforcement . | . . . . Assault . | . . . . Garrison . | . . . . Intercept . | . . . . Searches Triggered . | . . . . Construction Impeded . | . . . . Haulers Reinforced . | . . . . Active Scanning Responses . | . . . . Cargo Convoy Interrupts . | . . . . Stealth | -11 -10 -10 -10 --------- Run | Yrd Mat Min Sub Distress Signals . | . . . . Communications Jammed . | . . . . Distress Signals . | . . . . Times Spotted 34 | . 21 2 11 Peak Tracking Total 9 | . 5 2 9 Tactical Retreats 3 | . 2 . 1 Traps | -11 -10 -10 -10 ------- Run | Yrd Mat Min Sub Traps Triggered 3 | . 3 . . Indirectly . | . . . . Trap Hack Attempts . | . . . . Triggered . | . . . . Disarmed 8 | . 8 . . Reprogrammed . | . . . . Reused . | . . . . Traps Extracted . | . . . . Installed . | . . . . Triggered . | . . . . Machines | -11 -10 -10 -10 ---------- Run | Yrd Mat Min Sub Machines Disabled . | . . . . Max in Single Turn . | . . . . Machines Repaired . | . . . . Machines Dismantled . | . . . . Machines Sabotaged . | . . . . Overloaded Fab Kills . | . . . . Hacking | -11 -10 -10 -10 --------- Run | Yrd Mat Min Sub Machines Accessed 4 | . 4 . . Terminals 4 | . 4 . . Fabricators . | . . . . Repair Stations . | . . . . Recycling Units . | . . . . Scanalyzers . | . . . . Garrison Access . | . . . . Total Hacks 10 | . 10 . . Successful 7 | . 7 . . Failed 3 | . 3 . . Catastrophic . | . . . . Database Lockouts . | . . . . Manual 5 | . 5 . . Terminals 10 | . 10 . . Fabricators . | . . . . Repair Stations . | . . . . Recycling Units . | . . . . Scanalyzers . | . . . . Garrison Access . | . . . . Terminal Hacks 6 | . 6 . . Robot Analysis 2 | . 2 . . Locate Traps 1 | . 1 . . Disarm Traps 2 | . 2 . . Hauler Manifests 1 | . 1 . . Fabricator Hacks . | . . . . Repair Station Hacks . | . . . . Recycling Unit Hacks . | . . . . Scanalyzer . | . . . . Garrison Access Hacks . | . . . . Unauthorized Hacks 1 | . 1 . . Terminals 1 | . 1 . . Botnet 1 | . 1 . . Fabricators . | . . . . Repair Stations . | . . . . Recycling Units . | . . . . Scanalyzers . | . . . . Garrison Access . | . . . . Data Cores Recovered . | . . . . Used . | . . . . Hacking Detections 3 | . 3 . . Full Trace Events 1 | . 1 . . Feedback Events . | . . . . Feedback Blocked . | . . . . Robot Schematics Acquired . | . . . . Robots Built . | . . . . Authchips . | . . . . Time . | . . . . Total Robot Build Rating . | . . . . Part Schematics Acquired . | . . . . Parts Built . | . . . . Authchips . | . . . . Time . | . . . . Total Part Build Rating . | . . . . Part Studies Acquired . | . . . . Parts Repaired . | . . . . Time . | . . . . Parts Recycled . | . . . . Recycled Matter . | . . . . Retrieved Matter . | . . . . Retrieved Components . | . . . . Parts Scanalyzed . | . . . . Part Schematics Acquired . | . . . . Parts Damaged . | . . . . Bothacking | -11 -10 -10 -10 ------------ Run | Yrd Mat Min Sub Used RIF Installer . | . . . . Robots Hacked . | . . . . Non-combat . | . . . . Combat . | . . . . Robot Hacks Applied . | . . . . Relay Couplers Released . | . . . . Fabnet Peak Effective % . | . . . . Robots Rewired . | . . . . Allies Hacked . | . . . . Hacks Repelled . | . . . . Allies | -11 -10 -10 -10 -------- Run | Yrd Mat Min Sub Total Allies . | . . . . Largest Group . | . . . . Highest-Rated Group . | . . . . Highest-Rated Ally . | . . . . Total Orders . | . . . . Ally Attacks . | . . . . Total Damage . | . . . . Kills . | . . . . Allies Corrupted . | . . . . Allies Melted . | . . . . Intel | -11 -10 -10 -10 ------- Run | Yrd Mat Min Sub Active Infowar (turns) 1798 | 150 1107 446 95 Seismic 1798 | 150 1107 446 95 Robot Analysis Total 2 | . 2 . . Derelict Logs Recovered . | . . . . Drone Launches . | . . . . Drone Recoveries . | . . . . Exploration | -11 -10 -10 -10 ------------- Run | Yrd Mat Min Sub Turns Passed 2496 | 152 1121 544 679 Spaces Moved 1323 | 68 563 319 373 Core 6 | 4 . . 2 Treads 1317 | 64 563 319 371 Legs . | . . . . Wheels . | . . . . Hover . | . . . . Flight . | . . . . Fastest Speed 50 | 50 160 160 50 Average Speed 159 | 153 160 160 159 Slowest Speed 160 | 160 160 160 160 Overloaded Moves . | . . . . Propulsion Burnouts . | . . . . Robots Hopped . | . . . . Potential Cave-ins . | . . . . Cave-ins Triggered . | . . . . Exploration Rate (%) 48 | 4 90 67 32 Regions Visited 3 Branch Regions 2 Pre-discovered Areas 1 | . . . 1 Known Exits Taken 3 | 1 1 1 . Unknown Exits Taken . | . . . . Scrap Searched . | . . . . Spaces Dug 1 | . 1 . . Terrain Destroyed 10 | . 1 . 9 Melee . | . . . . Projectile 1 | . 1 . . AOE 9 | . . . 9 Terrain Rammed . | . . . . Walls Destroyed . | . . . . Machines Disabled . | . . . . Actions | -11 -10 -10 -10 --------- Run | Yrd Mat Min Sub Total 1602 | 92 734 338 438 Wait 183 | 2 134 2 45 Move 1320 | 67 562 318 373 Hop . | . . . . Pick Up 12 | 4 5 3 . Fast Attach 14 | 8 4 2 . Attach 7 | . 2 1 4 Detach 7 | 1 1 2 3 Swap 4 | . 2 . 2 Drop 4 | . 1 2 1 Fire 51 | 10 23 8 10 Melee . | . . . . Ram . | . . . . Kick . | . . . . Crush . | . . . . Escape Stasis . | . . . . Rewire . | . . . . Trap . | . . . . Miscellaneous . | . . . . Route ------- -11/Scrapyard -10/Materials (discovered 5 exits: *Mat x3 / *Min x2) -10/Mines (discovered 2 exits: *Mat / *Sub) -10/Subcaves (discovered 1 exit: *Mat) History --------- Turn | Location | Event 16 | -11/Scrapyard | Identified exit to Materials 16 | -11/Scrapyard | Discovered exit to Materials (range 15) 153 | -11/Scrapyard | Entered Materials 153 | -10/Materials | Evolved 1 slot: Utility x1 305 | -10/Materials | Build established: Hacker-Mutant 314 | -10/Materials | Identified exit to Mines 314 | -10/Materials | Discovered exit to Mines (range 10) 584 | -10/Materials | Identified exit to Materials 584 | -10/Materials | Discovered exit to Materials (range 6) 701 | -10/Materials | Discovered exit to Materials (range 16) 825 | -10/Materials | Discovered exit to Mines (range 7) 1000 | -10/Materials | Discovered exit to Materials (range 13) 1274 | -10/Materials | Entered Mines 1398 | -10/Mines | Found a hidden stash of uninstalled traps 1513 | -10/Mines | Discovered exit to Materials (range 9) 1644 | -10/Mines | Identified exit to Subcaves 1644 | -10/Mines | Discovered exit to Subcaves (range 5) 1818 | -10/Mines | Entered Subcaves 1819 | -10/Subcaves | Approached by a straggling Scientist 1988 | -10/Subcaves | Ambushed by Subdweller buried in earth 1996 | -10/Subcaves | Core integrity fell below 50% 2021 | -10/Subcaves | Lost 6 parts (1p1n1u3w) 2129 | -10/Subcaves | Learned location of Zion (-7) 2129 | -10/Subcaves | Met a Zionite searching for "candidates" 2277 | -10/Subcaves | Shifting Twisted Machinery released Flamer 2277 | -10/Subcaves | Shifting Twisted Machinery released Sub. Optics 2442 | -10/Subcaves | Identified exit to Materials 2442 | -10/Subcaves | Discovered exit to Materials (range 11) 2444 | -10/Subcaves | Shifting Twisted Machinery released Sub. Monowheel 2466 | -10/Subcaves | Shifting Twisted Machinery released Sub. Optics 2474 | -10/Subcaves | Core integrity fell below 20% 2497 | -10/Subcaves | Destroyed by FA-DWQ(R) with Subdweller Laser Last Messages --------------- 02102_ RQ-I78(z): "She is not going to be happy we haven't found any suitable candidates yet." 02129_ RQ-I78(z): "Hey you! It's really dangerous down here, I feel that you could die at any moment. For your health and safety might I suggest a trip to Zion?" World map updated: -7/Zion. 02261_ Acquired 17 matter. 02266_ Subatomizers dissect the Ion Engine. Flamer falls loose from the Twisted Machinery. Sub. Optics falls loose from the Twisted Machinery. 02278_ Subatomizers dissect the Aluminum Leg. 02310_ 00-V6I(R): "ECOKILL!" 02442_ EXIT=FOUND: MATERIALS Sub. Monowheel falls loose from the Twisted Machinery. Sub. Optics falls loose from the Twisted Machinery. 02483_ Seismic Detector destroyed. 02489_ Mining Laser destroyed. 02496_ Dropped Med. Storage Unit. 02496_ Extracted 30 matter. [Achievement: Deductive Reasoning] Map ----- +----------------------------------------------------+ | ?????## ##???????### # ###???????###?????????????? | | ????## #?????????#####?????????????????????????? | | ????# ##???????????????????????????????????????? | | ???## # #???????????????????????????????????????? | | ???# ####???????????????????????????????????????? | | ???## #??????????????????????????????????????????? | | ???# #??????????????????????????????????????????? | | ???# #??????????????????????????????????????????? | | ???# #??????????????????????????????????????????? | | ???## ##?????????????????????????????????????????? | | ????# ###???????????????????????????????????????? | | ????## #???????????????????????????????????????? | | ?????# # ##??????????????????????????????????????? | | ????## ## #??????????????????????????????????????? | | ????# # # #??????????????????????????????????????? | | ???##%#" ##??????????????????????????????????????? | | ?# # "# ##??????????????????????????????????????? | | ?# "" #??????????????????????????????????????? | | ?# "" "#?????????####?????????????????????????? | | # =" # ####??????# #?????????????????????????? | | ## #### " #????### ##????????????????????????? | | ?#"" ?## " #?#### ##???????????? ?????????? | | ?#"" ??# " #### ###?????? ?????????? | | ?#""